[Event "Lithuanian Chess League 2021"]
[Site "Various cities"]
[Date "2021.05.09"]
[Round "4.1"]
[White "Laurusas, Tomas"]
[Black "Stauskas, Lukas"]
[Result "1-0"]
[WhiteElo "2505"]
[BlackElo "2316"]
[PlyCount "47"]
[EventDate "2021.??.??"]
[TimeControl "90/40+30:0"]
[WhiteClock "0:24:23"]
[BlackClock "0:18:01"]

1. d4 {[%emt 0:00:06]} d5 {[%emt 0:00:07]} 2. c4 {[%emt 0:00:19]} c6 {[%emt 0:
00:06]} 3. Nf3 {[%emt 0:00:08]} Nf6 {[%emt 0:00:07]} 4. Nc3 {[%emt 0:00:12]} e6
{[%emt 0:00:07]} 5. Bg5 {[%emt 0:00:04]} Nbd7 {[%emt 0:00:09]} 6. e3 {[%emt 0:
00:08]} Qa5 {[%emt 0:00:07]} 7. cxd5 {[%emt 0:00:07]} Nxd5 {[%emt 0:00:13]} 8.
Qd2 {[%emt 0:00:07]} Bb4 {[%emt 0:02:22]} 9. Rc1 {[%emt 0:00:41]} b6 {[%emt 0:
00:25]} 10. a3 {[%emt 0:00:09]} Bxc3 {[%emt 0:08:52]} 11. bxc3 {[%emt 0:00:12]}
Qxa3 {[%emt 0:00:17]} 12. Bd3 {[%emt 0:09:53]} h6 {[%emt 0:30:05]} 13. Bh4 {
[%emt 0:00:11]} e5 {[%emt 0:00:23]} 14. O-O {[%emt 0:02:34]} O-O {[%emt 0:09:
26]} 15. c4 {[%emt 0:15:35]} N5f6 {[%emt 0:12:41]} 16. Bxf6 {[%emt 0:24:56]}
gxf6 {[%emt 0:03:57]} 17. Nh4 {[%emt 0:05:18]} Re8 {[%emt 0:00:30]} 18. c5 {
[%emt 0:05:03]} Nf8 {[%emt 0:10:52]} 19. Ra1 {[%emt 0:05:07]} Qb3 {[%emt 0:00:
26]} 20. Rfb1 {[%emt 0:00:09]} Qd5 {[%emt 0:01:20]} 21. cxb6 {[%emt 0:00:15]}
Bb7 {[%emt 0:00:40]} 22. bxa7 {[%emt 0:04:59]} c5 {[%emt 0:00:27]} 23. e4 {
[%emt 0:01:47]} Qxd4 {[%emt 0:00:24]} 24. Nf5 {[%emt 0:00:05]} 1-0

[Event "Lithuanian Chess League 2021"]
[Site "Various cities"]
[Date "2021.05.09"]
[Round "4.2"]
[White "Vardanyan, Aras"]
[Black "Pultinevicius, Paulius"]
[Result "1/2-1/2"]
[WhiteElo "2197"]
[BlackElo "2501"]
[PlyCount "165"]
[EventDate "2021.??.??"]
[TimeControl "90/40+30:0"]
[WhiteClock "0:06:01"]
[BlackClock "0:04:04"]

1. d4 {[%emt 0:00:02]} Nf6 {[%emt 0:00:08]} 2. c4 {[%emt 0:00:05]} g6 {[%emt 0:
00:14]} 3. f3 {[%emt 0:00:05]} d5 {[%emt 0:01:23]} 4. cxd5 {[%emt 0:00:06]}
Nxd5 {[%emt 0:00:04]} 5. e4 {[%emt 0:00:04]} Nb6 {[%emt 0:00:04]} 6. Nc3 {
[%emt 0:00:04]} Bg7 {[%emt 0:00:04]} 7. Be3 {[%emt 0:00:04]} O-O {[%emt 0:01:
36]} 8. Qd2 {[%emt 0:00:04]} Nc6 {[%emt 0:00:05]} 9. O-O-O {[%emt 0:00:09]} Qd6
{[%emt 0:00:05]} 10. Nb5 {[%emt 0:01:29]} Qd7 {[%emt 0:00:06]} 11. Bh6 {[%emt
0:00:04]} Bxh6 {[%emt 0:00:21]} 12. Qxh6 {[%emt 0:00:06]} a6 {[%emt 0:00:04]}
13. Nc3 {[%emt 0:00:03]} Nxd4 {[%emt 0:00:05]} 14. f4 {[%emt 0:00:03]} f6 {
[%emt 0:00:22]} 15. h4 {[%emt 0:00:06]} e5 {[%emt 0:05:17]} 16. Nf3 {[%emt 0:
01:18]} Qg7 {[%emt 0:09:26]} 17. Qxg7+ {[%emt 0:00:07]} Kxg7 {[%emt 0:00:04]}
18. Nxd4 {[%emt 0:00:06]} exd4 {[%emt 0:00:04]} 19. Rxd4 {[%emt 0:00:04]} Bd7 {
[%emt 0:00:14]} 20. Be2 {[%emt 0:05:45]} Bc6 {[%emt 0:01:24]} 21. Re1 {[%emt 0:
02:34]} Rae8 {[%emt 0:03:58]} 22. g3 {[%emt 0:07:13]} Re7 {[%emt 0:02:22]} 23.
Bd3 {[%emt 0:14:00]} Rfe8 {[%emt 0:04:18]} 24. Re2 {[%emt 0:05:41]} Re6 {[%emt
0:19:28]} 25. b4 {[%emt 0:07:34]} Rd6 {[%emt 0:01:53]} 26. Rxd6 {[%emt 0:00:48]
} cxd6 {[%emt 0:00:05]} 27. Rd2 {[%emt 0:02:14]} Kf8 {[%emt 0:07:41]} 28. h5 {
[%emt 0:05:52]} gxh5 {[%emt 0:04:34]} 29. Rh2 {[%emt 0:01:46]} Rc8 {[%emt 0:11:
54]} 30. Kd2 {[%emt 0:03:49]} Be8 {[%emt 0:01:04]} 31. Be2 {[%emt 0:01:53]}
Nc4+ {[%emt 0:00:54]} 32. Kd3 {[%emt 0:01:01]} Kg7 {[%emt 0:09:50]} 33. Kd4 {
[%emt 0:04:59]} Na3 {[%emt 0:01:28]} 34. Bd3 {[%emt 0:05:53]} Bf7 {[%emt 0:04:
42]} 35. Nd1 {[%emt 0:05:14]} f5 {[%emt 0:03:35]} 36. exf5 {[%emt 0:07:11]}
Nb5+ {[%emt 0:06:23]} 37. Bxb5 {[%emt 0:03:24]} axb5 {[%emt 0:00:04]} 38. Ne3 {
[%emt 0:00:35]} Rc1 {[%emt 0:00:36]} 39. a3 {[%emt 0:02:33]} Ra1 {[%emt 0:01:
04]} 40. Nc2 {[%emt 0:03:56]} Rg1 {[%emt 0:00:12]} 41. Rh3 {[%emt 0:03:59]}
Rd1+ {[%emt 0:00:52]} 42. Ke4 {[%emt 0:01:31]} Bd5+ {[%emt 0:03:24]} 43. Ke3 {
[%emt 0:02:47]} Bf7 {[%emt 0:10:10]} 44. Nd4 {[%emt 0:00:30]} Kf6 {[%emt 0:01:
28]} 45. Rh2 {[%emt 0:03:08]} Bc4 {[%emt 0:03:01]} 46. Rd2 {[%emt 0:04:15]}
Re1+ {[%emt 0:00:22]} 47. Kf2 {[%emt 0:00:19]} Rf1+ {[%emt 0:03:02]} 48. Ke3 {
[%emt 0:00:50]} Ra1 {[%emt 0:05:18]} 49. Nc2 {[%emt 0:03:00]} Ra2 {[%emt 0:00:
05]} 50. Rxd6+ {[%emt 0:01:52]} Kxf5 {[%emt 0:00:07]} 51. Nd4+ {[%emt 0:00:58]}
Kg4 {[%emt 0:00:04]} 52. Rh6 {[%emt 0:00:42]} Rxa3+ {[%emt 0:00:17]} 53. Ke4 {
[%emt 0:01:13]} Rxg3 {[%emt 0:03:19]} 54. f5 {[%emt 0:01:23]} Bd3+ {[%emt 0:02:
27]} 55. Ke5 {[%emt 0:01:41]} Re3+ {[%emt 0:00:48]} 56. Kf6 {[%emt 0:00:21]} h4
{[%emt 0:02:29]} 57. Rxh7 {[%emt 0:00:56]} h3 {[%emt 0:00:32]} 58. Rg7+ {[%emt
0:06:07]} Kh4 {[%emt 0:00:12]} 59. Ne6 {[%emt 0:03:21]} Rf3 {[%emt 0:01:03]}
60. Nd4 {[%emt 0:00:26]} Rf1 {[%emt 0:01:56]} 61. Rh7+ {[%emt 0:03:02]} Kg3 {
[%emt 0:00:05]} 62. Rg7+ {[%emt 0:01:15]} Kf2 {[%emt 0:00:05]} 63. Rh7 {[%emt
0:00:08]} Kg2 {[%emt 0:00:04]} 64. Rg7+ {[%emt 0:00:06]} Kh2 {[%emt 0:02:33]}
65. Ke5 {[%emt 0:01:07]} Re1+ {[%emt 0:01:05]} 66. Kd6 {[%emt 0:00:41]} Rf1 {
[%emt 0:00:42]} 67. Ke5 {[%emt 0:00:38]} Re1+ {[%emt 0:00:33]} 68. Kd6 {[%emt
0:00:06]} Be4 {[%emt 0:00:30]} 69. f6 {[%emt 0:00:27]} Rf1 {[%emt 0:00:07]} 70.
f7 {[%emt 0:00:34]} Bg6 {[%emt 0:00:52]} 71. Rxg6 {[%emt 0:01:19]} Rxf7 {[%emt
0:00:05]} 72. Nxb5 {[%emt 0:01:17]} Rf4 {[%emt 0:00:22]} 73. Kc5 {[%emt 0:00:
57]} b6+ {[%emt 0:00:27]} 74. Rxb6 {[%emt 0:00:11]} Kg2 {[%emt 0:00:35]} 75.
Rg6+ {[%emt 0:04:42]} Kf1 {[%emt 0:00:08]} 76. Rh6 {[%emt 0:00:23]} Kg2 {[%emt
0:00:16]} 77. Nd4 {[%emt 0:01:04]} h2 {[%emt 0:00:11]} 78. b5 {[%emt 0:00:10]}
h1=Q {[%emt 0:00:06]} 79. Rxh1 {[%emt 0:00:04]} Kxh1 {[%emt 0:00:05]} 80. b6 {
[%emt 0:00:15]} Rf7 {[%emt 0:00:03]} 81. Kc6 {[%emt 0:00:10]} Rf6+ {[%emt 0:00:
04]} 82. Kc7 {[%emt 0:00:04]} Rxb6 {[%emt 0:00:05]} 83. Kxb6 {[%emt 0:00:04]}
1/2-1/2

[Event "Lithuanian Chess League 2021"]
[Site "Various cities"]
[Date "2021.05.09"]
[Round "4.3"]
[White "Vedrickas, Tautvydas"]
[Black "Salna, Aleksandras"]
[Result "0-1"]
[WhiteElo "2395"]
[BlackElo "2125"]
[PlyCount "94"]
[EventDate "2021.??.??"]
[TimeControl "90/40+30:0"]
[WhiteClock "0:00:33"]
[BlackClock "0:37:08"]

1. d4 {[%emt 0:00:08]} d5 {[%emt 0:00:06]} 2. c4 {[%emt 0:00:20]} c6 {[%emt 0:
00:08]} 3. Nf3 {[%emt 0:00:17]} Nf6 {[%emt 0:00:10]} 4. Nc3 {[%emt 0:01:04]} a6
{[%emt 0:00:06]} 5. Qc2 {[%emt 0:00:36]} g6 {[%emt 0:02:12]} 6. cxd5 {[%emt 0:
00:17]} cxd5 {[%emt 0:00:05]} 7. Bg5 {[%emt 0:00:09]} Nc6 {[%emt 0:02:25]} 8.
Bxf6 {[%emt 0:00:28]} exf6 {[%emt 0:00:05]} 9. Qb3 {[%emt 0:00:36]} Be6 {[%emt
0:02:59]} 10. e3 {[%emt 0:05:19]} Na5 {[%emt 0:01:07]} 11. Qd1 {[%emt 0:00:47]}
Nc4 {[%emt 0:04:28]} 12. Bxc4 {[%emt 0:04:05]} dxc4 {[%emt 0:00:12]} 13. O-O {
[%emt 0:05:54]} b5 {[%emt 0:02:31]} 14. d5 {[%emt 0:08:53]} Bd7 {[%emt 0:04:46]
} 15. Qd4 {[%emt 0:01:13]} Bg7 {[%emt 0:02:41]} 16. Qc5 {[%emt 0:01:49]} Rb8 {
[%emt 0:11:09]} 17. Ne4 {[%emt 0:05:02]} Qe7 {[%emt 0:00:18]} 18. Nd6+ {[%emt
0:02:16]} Kd8 {[%emt 0:02:06]} 19. Nd4 {[%emt 0:02:34]} Bf8 {[%emt 0:12:43]}
20. Nc6+ {[%emt 0:00:31]} Bxc6 {[%emt 0:00:05]} 21. dxc6 {[%emt 0:00:05]} Kc7 {
[%emt 0:00:11]} 22. Rfd1 {[%emt 0:17:16]} Rb6 {[%emt 0:12:42]} 23. a4 {[%emt 0:
03:33]} Qxd6 {[%emt 0:05:47]} 24. Rxd6 {[%emt 0:00:10]} Bxd6 {[%emt 0:00:04]}
25. Qd5 {[%emt 0:00:21]} Rd8 {[%emt 0:00:07]} 26. Qxf7+ {[%emt 0:01:12]} Kxc6 {
[%emt 0:00:05]} 27. axb5+ {[%emt 0:01:43]} axb5 {[%emt 0:00:04]} 28. Qxf6 {
[%emt 0:00:45]} Rf8 {[%emt 0:07:14]} 29. Qe6 {[%emt 0:02:23]} Kc5 {[%emt 0:00:
29]} 30. b4+ {[%emt 0:05:50]} Kxb4 {[%emt 0:00:36]} 31. Qd5 {[%emt 0:00:12]}
Rd8 {[%emt 0:02:28]} 32. g3 {[%emt 0:05:42]} Be7 {[%emt 0:04:19]} 33. Rb1+ {
[%emt 0:07:36]} Ka4 {[%emt 0:01:00]} 34. Ra1+ {[%emt 0:03:30]} Kb3 {[%emt 0:02:
12]} 35. Qe4 {[%emt 0:01:37]} Bf6 {[%emt 0:00:07]} 36. Ra7 {[%emt 0:10:10]} Kb2
{[%emt 0:01:07]} 37. Rxh7 {[%emt 0:02:51]} Rc8 {[%emt 0:00:54]} 38. Rf7 {[%emt
0:00:42]} b4 {[%emt 0:00:58]} 39. Rxf6 {[%emt 0:00:48]} Rxf6 {[%emt 0:00:07]}
40. Qd4+ {[%emt 0:00:16]} c3 {[%emt 0:01:38]} 41. Qxf6 {[%emt 0:08:44]} b3 {
[%emt 0:01:04]} 42. Kf1 {[%emt 0:08:12]} Kb1 {[%emt 0:03:09]} 43. Qe6 {[%emt 0:
06:36]} b2 {[%emt 0:00:17]} 44. Ke2 {[%emt 0:05:28]} c2 {[%emt 0:04:19]} 45.
Qe4 {[%emt 0:01:50]} Rd8 {[%emt 0:03:21]} 46. h4 {[%emt 0:00:42]} Kc1 {[%emt 0:
02:00]} 47. Qe7 {[%emt 0:02:50]} Rd2+ {[%emt 0:00:15]} 0-1

[Event "Lithuanian Chess League 2021"]
[Site "Various cities"]
[Date "2021.05.09"]
[Round "4.4"]
[White "Eigminas, Kipras"]
[Black "Klabis, Rokas"]
[Result "1/2-1/2"]
[WhiteElo "2095"]
[BlackElo "2329"]
[PlyCount "116"]
[EventDate "2021.??.??"]
[TimeControl "90/40+30:0"]
[WhiteClock "0:09:45"]
[BlackClock "0:02:31"]

1. e4 {[%emt 0:00:05]} e5 {[%emt 0:00:11]} 2. Nf3 {[%emt 0:00:04]} Nc6 {[%emt
0:00:11]} 3. Bb5 {[%emt 0:00:04]} Nge7 {[%emt 0:00:20]} 4. O-O {[%emt 0:00:07]}
Ng6 {[%emt 0:00:16]} 5. d4 {[%emt 0:00:12]} exd4 {[%emt 0:00:11]} 6. Nxd4 {
[%emt 0:00:05]} Bc5 {[%emt 0:00:13]} 7. Nf5 {[%emt 0:00:06]} O-O {[%emt 0:00:
45]} 8. Qh5 {[%emt 0:01:11]} d6 {[%emt 0:19:23]} 9. Bg5 {[%emt 0:02:39]} f6 {
[%emt 0:04:05]} 10. Bc4+ {[%emt 0:00:32]} Kh8 {[%emt 0:00:06]} 11. Be3 {[%emt
0:16:38]} Nge5 {[%emt 0:08:12]} 12. Qe2 {[%emt 0:00:19]} g6 {[%emt 0:24:30]}
13. Bxc5 {[%emt 0:04:40]} dxc5 {[%emt 0:00:31]} 14. Ne3 {[%emt 0:01:00]} Nd4 {
[%emt 0:00:05]} 15. Qd1 {[%emt 0:00:26]} Nxc4 {[%emt 0:00:04]} 16. Nxc4 {[%emt
0:00:08]} b6 {[%emt 0:00:07]} 17. Re1 {[%emt 0:05:31]} Bb7 {[%emt 0:00:38]} 18.
Nba3 {[%emt 0:06:08]} Qe8 {[%emt 0:03:06]} 19. c3 {[%emt 0:01:02]} Ne6 {[%emt
0:00:04]} 20. Qe2 {[%emt 0:05:24]} Qc6 {[%emt 0:02:26]} 21. f3 {[%emt 0:01:06]}
Rae8 {[%emt 0:00:24]} 22. Rad1 {[%emt 0:01:55]} Ng5 {[%emt 0:01:32]} 23. Qe3 {
[%emt 0:07:33]} Re7 {[%emt 0:05:52]} 24. Qf4 {[%emt 0:01:18]} Ne6 {[%emt 0:00:
47]} 25. Qh4 {[%emt 0:00:40]} Rg7 {[%emt 0:04:38]} 26. Qf2 {[%emt 0:16:10]} Nf4
{[%emt 0:02:19]} 27. Qg3 {[%emt 0:03:03]} Nh5 {[%emt 0:03:36]} 28. Qh4 {[%emt
0:00:33]} Qe8 {[%emt 0:00:04]} 29. Ne3 {[%emt 0:03:24]} g5 {[%emt 0:06:28]} 30.
Qf2 {[%emt 0:00:09]} Bc8 {[%emt 0:00:35]} 31. Nf5 {[%emt 0:07:14]} Rd7 {[%emt
0:00:48]} 32. Rxd7 {[%emt 0:05:13]} Bxd7 {[%emt 0:00:10]} 33. g3 {[%emt 0:00:
09]} Be6 {[%emt 0:06:51]} 34. b3 {[%emt 0:01:35]} Qd7 {[%emt 0:01:59]} 35. c4 {
[%emt 0:02:29]} Rd8 {[%emt 0:02:37]} 36. Nb5 {[%emt 0:02:40]} Ng7 {[%emt 0:02:
04]} 37. g4 {[%emt 0:01:30]} c6 {[%emt 0:01:49]} 38. Nc3 {[%emt 0:02:44]} Bf7 {
[%emt 0:00:26]} 39. Nxg7 {[%emt 0:00:05]} Kxg7 {[%emt 0:00:03]} 40. h4 {[%emt
0:04:05]} gxh4 {[%emt 0:01:24]} 41. Rd1 {[%emt 0:02:34]} Qc7 {[%emt 0:02:42]}
42. Qxh4 {[%emt 0:00:26]} Rxd1+ {[%emt 0:05:10]} 43. Nxd1 {[%emt 0:00:05]} Qf4
{[%emt 0:00:03]} 44. Kg2 {[%emt 0:01:17]} b5 {[%emt 0:03:00]} 45. cxb5 {[%emt
0:01:38]} cxb5 {[%emt 0:00:08]} 46. Qf2 {[%emt 0:00:06]} Qc1 {[%emt 0:06:59]}
47. Ne3 {[%emt 0:00:38]} Be6 {[%emt 0:00:03]} 48. f4 {[%emt 0:00:29]} c4 {
[%emt 0:06:21]} 49. bxc4 {[%emt 0:01:46]} bxc4 {[%emt 0:00:15]} 50. e5 {[%emt
0:00:10]} c3 {[%emt 0:03:23]} 51. f5 {[%emt 0:06:36]} Bxa2 {[%emt 0:02:26]} 52.
exf6+ {[%emt 0:00:29]} Kxf6 {[%emt 0:01:38]} 53. Qh4+ {[%emt 0:04:14]} Ke5 {
[%emt 0:01:37]} 54. Qe7+ {[%emt 0:00:04]} Kd4 {[%emt 0:00:56]} 55. Qxa7+ {
[%emt 0:04:03]} Kd3 {[%emt 0:00:51]} 56. Qa6+ {[%emt 0:00:10]} Ke4 {[%emt 0:00:
24]} 57. Qc6+ {[%emt 0:00:45]} Kd3 {[%emt 0:00:49]} 58. Qa6+ {[%emt 0:04:15]}
Ke4 {[%emt 0:00:29]} 1/2-1/2

[Event "Lithuanian Chess League 2021"]
[Site "Various cities"]
[Date "2021.05.09"]
[Round "4.5"]
[White "Setkauskas, Vaidas"]
[Black "Paulauskas, Andrius"]
[Result "1/2-1/2"]
[WhiteElo "2238"]
[BlackElo "1906"]
[PlyCount "108"]
[EventDate "2021.??.??"]
[TimeControl "90/40+30:0"]
[WhiteClock "0:02:36"]
[BlackClock "0:17:57"]

1. e4 {[%emt 0:00:37]} e6 {[%emt 0:00:04]} 2. d4 {[%emt 0:00:51]} d5 {[%emt 0:
00:04]} 3. Bd3 {[%emt 0:03:07]} dxe4 {[%emt 0:00:06]} 4. Bxe4 {[%emt 0:00:06]}
Nf6 {[%emt 0:00:07]} 5. Bf3 {[%emt 0:00:22]} c5 {[%emt 0:00:15]} 6. Ne2 {[%emt
0:00:54]} Be7 {[%emt 0:12:24]} 7. Be3 {[%emt 0:02:42]} cxd4 {[%emt 0:02:48]} 8.
Qxd4 {[%emt 0:02:07]} Qxd4 {[%emt 0:02:14]} 9. Nxd4 {[%emt 0:01:07]} a6 {[%emt
0:05:22]} 10. c4 {[%emt 0:04:39]} e5 {[%emt 0:03:00]} 11. Nb3 {[%emt 0:01:46]}
e4 {[%emt 0:01:47]} 12. Be2 {[%emt 0:00:25]} Nc6 {[%emt 0:01:27]} 13. O-O {
[%emt 0:14:09]} O-O {[%emt 0:05:11]} 14. Nc3 {[%emt 0:07:09]} Bf5 {[%emt 0:05:
46]} 15. h3 {[%emt 0:00:59]} Bd6 {[%emt 0:04:59]} 16. g4 {[%emt 0:24:24]} Bg6 {
[%emt 0:00:11]} 17. h4 {[%emt 0:10:19]} h6 {[%emt 0:00:20]} 18. g5 {[%emt 0:00:
23]} hxg5 {[%emt 0:00:05]} 19. hxg5 {[%emt 0:00:05]} Nh7 {[%emt 0:00:21]} 20.
Rfd1 {[%emt 0:01:40]} Be7 {[%emt 0:02:49]} 21. Rd7 {[%emt 0:03:08]} Bxg5 {
[%emt 0:00:19]} 22. Rxb7 {[%emt 0:01:01]} f5 {[%emt 0:05:37]} 23. Rb6 {[%emt 0:
04:20]} Be8 {[%emt 0:05:49]} 24. Nd5 {[%emt 0:00:35]} Bd8 {[%emt 0:13:33]} 25.
Rb7 {[%emt 0:00:27]} Rf7 {[%emt 0:00:19]} 26. Nc5 {[%emt 0:02:29]} Rxb7 {[%emt
0:06:56]} 27. Nxb7 {[%emt 0:00:02]} Rb8 {[%emt 0:03:33]} 28. Nxd8 {[%emt 0:00:
14]} Rxd8 {[%emt 0:02:59]} 29. Bb6 {[%emt 0:02:15]} Rb8 {[%emt 0:00:45]} 30. c5
{[%emt 0:00:10]} Bf7 {[%emt 0:00:56]} 31. Rd1 {[%emt 0:00:19]} Ng5 {[%emt 0:01:
13]} 32. Bxa6 {[%emt 0:07:21]} Bxd5 {[%emt 0:06:49]} 33. Rxd5 {[%emt 0:00:07]}
Nb4 {[%emt 0:00:06]} 34. Rxf5 {[%emt 0:03:12]} Nf3+ {[%emt 0:00:15]} 35. Rxf3 {
[%emt 0:00:04]} exf3 {[%emt 0:00:18]} 36. Bc4+ {[%emt 0:00:37]} Kf8 {[%emt 0:
00:14]} 37. Bc7 {[%emt 0:00:33]} Rc8 {[%emt 0:02:00]} 38. Bd6+ {[%emt 0:00:19]}
Ke8 {[%emt 0:00:04]} 39. a3 {[%emt 0:01:17]} Nc6 {[%emt 0:00:28]} 40. Be6 {
[%emt 0:03:00]} Ra8 {[%emt 0:00:08]} 41. Bd5 {[%emt 0:00:18]} Kd7 {[%emt 0:00:
20]} 42. Bxf3 {[%emt 0:00:10]} Ra4 {[%emt 0:02:17]} 43. Kf1 {[%emt 0:07:14]}
Rc4 {[%emt 0:13:33]} 44. Ke1 {[%emt 0:09:47]} Nd4 {[%emt 0:00:58]} 45. Bg4+ {
[%emt 0:05:57]} Kc6 {[%emt 0:00:06]} 46. Bd1 {[%emt 0:00:35]} Nf5 {[%emt 0:04:
12]} 47. Bf8 {[%emt 0:00:19]} Re4+ {[%emt 0:00:44]} 48. Kf1 {[%emt 0:02:19]}
Rd4 {[%emt 0:01:01]} 49. Bf3+ {[%emt 0:04:10]} Kc7 {[%emt 0:01:04]} 50. b4 {
[%emt 0:00:46]} Rd8 {[%emt 0:00:41]} 51. Bd6+ {[%emt 0:01:46]} Nxd6 {[%emt 0:
04:05]} 52. cxd6+ {[%emt 0:00:01]} Rxd6 {[%emt 0:00:19]} 53. Be2 {[%emt 0:01:
51]} Rd2 {[%emt 0:00:33]} 54. a4 {[%emt 0:00:20]} Rd4 {[%emt 0:00:09]} 1/2-1/2

[Event "Lithuanian Chess League 2021"]
[Site "Various cities"]
[Date "2021.05.09"]
[Round "4.6"]
[White "Sulskis, Sarunas"]
[Black "Stremavicius, Titas"]
[Result "1/2-1/2"]
[WhiteElo "2518"]
[BlackElo "2484"]
[PlyCount "148"]
[EventDate "2021.??.??"]
[TimeControl "90/40+30:0"]
[WhiteClock "0:02:57"]
[BlackClock "0:05:50"]

1. Nf3 {[%emt 0:00:05]} f5 {[%emt 0:03:48]} 2. b4 {[%emt 0:02:52]} Nf6 {[%emt
0:04:45]} 3. Bb2 {[%emt 0:00:31]} e6 {[%emt 0:00:14]} 4. b5 {[%emt 0:01:57]} a6
{[%emt 0:14:20]} 5. a4 {[%emt 0:00:55]} Be7 {[%emt 0:01:41]} 6. e3 {[%emt 0:03:
20]} O-O {[%emt 0:03:07]} 7. Be2 {[%emt 0:01:19]} axb5 {[%emt 0:05:26]} 8. axb5
{[%emt 0:00:15]} Rxa1 {[%emt 0:00:05]} 9. Bxa1 {[%emt 0:00:05]} b6 {[%emt 0:00:
40]} 10. O-O {[%emt 0:07:14]} Re8 {[%emt 0:01:11]} 11. d3 {[%emt 0:05:26]} Bb7
{[%emt 0:08:00]} 12. Nbd2 {[%emt 0:04:59]} Bf8 {[%emt 0:13:28]} 13. c4 {[%emt
0:10:01]} d6 {[%emt 0:13:05]} 14. Nd4 {[%emt 0:04:26]} g6 {[%emt 0:00:23]} 15.
Bf3 {[%emt 0:04:23]} Bxf3 {[%emt 0:00:45]} 16. Qxf3 {[%emt 0:01:29]} Bg7 {
[%emt 0:01:44]} 17. Bb2 {[%emt 0:04:40]} e5 {[%emt 0:14:21]} 18. Nc2 {[%emt 0:
03:50]} Nbd7 {[%emt 0:02:03]} 19. Nb4 {[%emt 0:03:40]} e4 {[%emt 0:00:31]} 20.
Qe2 {[%emt 0:01:35]} exd3 {[%emt 0:01:28]} 21. Qxd3 {[%emt 0:00:57]} Nc5 {
[%emt 0:04:03]} 22. Qc2 {[%emt 0:01:06]} Qd7 {[%emt 0:01:29]} 23. h3 {[%emt 0:
04:15]} Ra8 {[%emt 0:01:42]} 24. Bxf6 {[%emt 0:03:31]} Bxf6 {[%emt 0:00:02]}
25. e4 {[%emt 0:00:41]} fxe4 {[%emt 0:01:26]} 26. Nxe4 {[%emt 0:00:30]} Nxe4 {
[%emt 0:01:27]} 27. Qxe4 {[%emt 0:00:21]} Re8 {[%emt 0:00:28]} 28. Qb7 {[%emt
0:07:06]} Qf7 {[%emt 0:01:37]} 29. Qd5 {[%emt 0:03:00]} Qxd5 {[%emt 0:01:10]}
30. Nxd5 {[%emt 0:00:23]} Kf7 {[%emt 0:00:34]} 31. Nxc7 {[%emt 0:11:44]} Rc8 {
[%emt 0:00:30]} 32. Nd5 {[%emt 0:00:07]} Rxc4 {[%emt 0:00:21]} 33. Nxb6 {[%emt
0:00:41]} Rb4 {[%emt 0:00:10]} 34. Nc8 {[%emt 0:01:35]} Ke6 {[%emt 0:00:22]}
35. Re1+ {[%emt 0:04:25]} Be5 {[%emt 0:00:35]} 36. Na7 {[%emt 0:01:01]} Kd7 {
[%emt 0:00:25]} 37. g3 {[%emt 0:00:51]} Rb2 {[%emt 0:01:06]} 38. Re4 {[%emt 0:
00:21]} Bf6 {[%emt 0:00:21]} 39. Rf4 {[%emt 0:00:49]} Ke6 {[%emt 0:00:16]} 40.
h4 {[%emt 0:01:26]} d5 {[%emt 0:00:55]} 41. Ra4 {[%emt 0:01:53]} Kd7 {[%emt 0:
04:06]} 42. Kg2 {[%emt 0:08:18]} Bc3 {[%emt 0:01:07]} 43. Rf4 {[%emt 0:01:25]}
d4 {[%emt 0:06:23]} 44. Rf3 {[%emt 0:04:04]} h5 {[%emt 0:06:54]} 45. Rf7+ {
[%emt 0:04:36]} Ke8 {[%emt 0:03:44]} 46. Rc7 {[%emt 0:02:27]} Ba5 {[%emt 0:01:
30]} 47. Rc8+ {[%emt 0:00:46]} Kd7 {[%emt 0:07:13]} 48. Rc4 {[%emt 0:02:21]}
Bb6 {[%emt 0:00:41]} 49. Nc8 {[%emt 0:04:12]} Rxb5 {[%emt 0:00:10]} 50. Nxb6+ {
[%emt 0:00:18]} Rxb6 {[%emt 0:00:01]} 51. Rxd4+ {[%emt 0:00:16]} Ke6 {[%emt 0:
00:06]} 52. Rf4 {[%emt 0:00:15]} Rb3 {[%emt 0:00:22]} 53. Rf8 {[%emt 0:01:32]}
Ke7 {[%emt 0:00:17]} 54. Rf3 {[%emt 0:00:26]} Rb1 {[%emt 0:00:50]} 55. Rf4 {
[%emt 0:02:19]} Rb3 {[%emt 0:00:07]} 56. Kh3 {[%emt 0:01:49]} Rc3 {[%emt 0:00:
16]} 57. f3 {[%emt 0:00:37]} Ra3 {[%emt 0:00:58]} 58. Re4+ {[%emt 0:01:46]} Kf6
{[%emt 0:00:07]} 59. Kg2 {[%emt 0:01:23]} Ra2+ {[%emt 0:00:10]} 60. Kf1 {[%emt
0:00:05]} Rb2 {[%emt 0:00:22]} 61. Re2 {[%emt 0:00:27]} Rb1+ {[%emt 0:00:46]}
62. Kf2 {[%emt 0:00:10]} Rb3 {[%emt 0:00:37]} 63. Rd2 {[%emt 0:00:21]} Rb6 {
[%emt 0:01:12]} 64. Ke3 {[%emt 0:00:20]} Ra6 {[%emt 0:00:31]} 65. Rd5 {[%emt 0:
00:30]} Ra3+ {[%emt 0:01:26]} 66. Ke4 {[%emt 0:00:15]} Ra4+ {[%emt 0:00:17]}
67. Rd4 {[%emt 0:00:06]} Ra6 {[%emt 0:00:08]} 68. Kf4 {[%emt 0:00:25]} Rb6 {
[%emt 0:00:06]} 69. Rc4 {[%emt 0:01:41]} Ra6 {[%emt 0:00:35]} 70. g4 {[%emt 0:
00:38]} hxg4 {[%emt 0:00:05]} 71. fxg4 {[%emt 0:00:17]} g5+ {[%emt 0:00:09]}
72. hxg5+ {[%emt 0:00:14]} Kg6 {[%emt 0:00:05]} 73. Rc5 {[%emt 0:00:20]} Ra4+ {
[%emt 0:00:12]} 74. Kg3 {[%emt 0:00:22]} Ra1 {[%emt 0:00:14]} 1/2-1/2

[Event "Lithuanian Chess League 2021"]
[Site "Various cities"]
[Date "2021.05.09"]
[Round "4.7"]
[White "Juksta, Karolis"]
[Black "Bieliauskas, Marius"]
[Result "1-0"]
[WhiteElo "2437"]
[BlackElo "2201"]
[PlyCount "45"]
[EventDate "2021.??.??"]
[TimeControl "90/40+30:0"]
[WhiteClock "0:26:34"]
[BlackClock "0:13:28"]

1. d4 {[%emt 0:00:02]} Nf6 {[%emt 0:00:30]} 2. c4 {[%emt 0:00:09]} g6 {[%emt 0:
00:12]} 3. Nc3 {[%emt 0:00:11]} d5 {[%emt 0:00:13]} 4. cxd5 {[%emt 0:00:13]}
Nxd5 {[%emt 0:00:42]} 5. e4 {[%emt 0:00:13]} Nxc3 {[%emt 0:00:13]} 6. bxc3 {
[%emt 0:00:07]} Bg7 {[%emt 0:00:02]} 7. Nf3 {[%emt 0:00:21]} O-O {[%emt 0:01:
12]} 8. Be2 {[%emt 0:00:19]} c5 {[%emt 0:00:58]} 9. O-O {[%emt 0:00:10]} b6 {
[%emt 0:01:54]} 10. Bg5 {[%emt 0:01:08]} Bb7 {[%emt 0:02:50]} 11. Qd3 {[%emt 0:
00:30]} Ba6 {[%emt 0:16:14]} 12. Qe3 {[%emt 0:01:01]} Bxe2 {[%emt 0:00:07]} 13.
Qxe2 {[%emt 0:00:06]} cxd4 {[%emt 0:01:31]} 14. cxd4 {[%emt 0:00:35]} Qd7 {
[%emt 0:00:52]} 15. Rac1 {[%emt 0:05:05]} h6 {[%emt 0:10:12]} 16. Bf4 {[%emt 0:
10:49]} e6 {[%emt 0:04:03]} 17. Rc7 {[%emt 0:05:35]} Qa4 {[%emt 0:01:45]} 18.
Rfc1 {[%emt 0:03:48]} b5 {[%emt 0:12:43]} 19. Rb7 {[%emt 0:11:49]} a5 {[%emt 0:
15:01]} 20. Qd2 {[%emt 0:19:15]} h5 {[%emt 0:03:50]} 21. Bd6 {[%emt 0:06:38]}
Rd8 {[%emt 0:02:28]} 22. Qf4 {[%emt 0:03:23]} Nd7 {[%emt 0:10:21]} 23. Ng5 {
[%emt 0:04:08]} 1-0